[Event "Turkish Second League 2019"]
[Site "Konya"]
[Date "2019.07.25"]
[Round "6"]
[White "Ozcan, Kadir Kutay"]
[Black "Ozcoban, Kadir"]
[Result "1-0"]
[ECO "C77"]
[WhiteElo "1832"]
[BlackElo "1850"]
[Annotator "NA"]
[PlyCount "89"]
[EventDate "2019.07.22"]
[EventType "team-tourn"]
[EventCountry "TUR"]
[SourceTitle "playchess.com"]
[Source "ChessBase"]
[SourceQuality "1"]
[TimeControl "5400+30"]

1. e4 {[%emt 0:00:30]} e5 {[%emt 0:02:30]} 2. Nf3 {[%emt 0:00:30]} Nc6 {[%emt 0:00:00]} 3. Bb5 {[%emt 0:00:30]} a6 {[%emt 0:00:00]} 4. Ba4 {[%emt 0:00:00]} Nf6 {[%emt 0:00:00]} 5. Bxc6 {[%emt 0:00:00]} dxc6 {[%emt 0:00:00]} 6. d3 {[%emt 0:00:30]} Bg4 {[%emt 0:01:30]} 7. h3 {[%emt 0:00:30]} Bxf3 {[%emt 0:00:30]} 8. Qxf3 {[%emt 0:00:30]} Nd7 {[%emt 0:02:30]} 9. Nd2 {[%emt 0:08:30]} Bc5 {[%emt 0:01:30]} 10. Nf1 {[%emt 0:02:30]} Qe7 {[%emt 0:06:30]} 11. a3 {[%emt 0:04:30]} O-O-O {[%emt 0:01:30]} 12. Be3 {[%emt 0:01:30]} g6 {[%emt 0:12:30]} 13. b4 {[%emt 0:02:30]} Bd4 {[%emt 0:01:30]} 14. Bxd4 {[%emt 0:00:30]} exd4 {[%emt 0:00:00]} 15. Nd2 {[%emt 0:03:30]} c5 {[%emt 0:13:00]} 16. Rb1 {[%emt 0:04:30]} cxb4 {[%emt 0:07:30]} 17. axb4 {[%emt 0:00:30]} Rhf8 {[%emt 0:04:30]} 18. O-O {[%emt 0:05:30]} f5 {[%emt 0:02:30]} 19. Qe2 {[%emt 0:00:30]} f4 {[%emt 0:00:30]} 20. f3 {[%emt 0:00:30]} Ne5 {[%emt 0:00:00]} 21. b5 {[%emt 0:02:30]} axb5 {[%emt 0:05:00]} 22. Rxb5 {[%emt 0:00:30]} b6 {[%emt 0:11:30]} 23. Rfb1 {[%emt 0:01:30]} Kd7 {[%emt 0:01:30]} 24. Nc4 {[%emt 0:11:30]} Nxc4 {[%emt 0:02:30]} 25. dxc4 {[%emt 0:02:30]} Qa3 {[%emt 0:01:30]} 26. c5 {[%emt 0:08:30]} Qe3+ {[%emt 0:00:00]} 27. Kf1 {[%emt 0:01:30]} Qxe2+ {[%emt 0:01:00]} 28. Kxe2 {[%emt 0:00:30]} bxc5 {[%emt 0:01:30]} 29. Rxc5 {[%emt 0:00:30]} Kd6 {[%emt 0:01:35]} 30. Rc4 {[%emt 0:00:30]} Rb8 {[%emt 0:00:47]} 31. Rxd4+ {[%emt 0:00:30]} Ke6 {[%emt 0:00:57]} 32. Rbd1 {[%emt 0:02:30]} Rb2 {[%emt 0:00:35]} 33. Rc4 {[%emt 0:03:30]} Rc8 {[%emt 0:04:05]} 34. Rd5 {[%emt 0:06:30]} c6 {[%emt 0:02:08]} 35. Rd3 {[%emt 0:00:30]} Rb1 {[%emt 0:02:01]} 36. Kf2 {[%emt 0:02:30]} Rb2 {[%emt 0:00:33]} 37. g3 {[%emt 0:01:30]} fxg3+ {[%emt 0:01:44]} 38. Kxg3 {[%emt 0:00:30]} Rb1 {[%emt 0:00:33]} 39. Rcd4 {[%emt 0:00:30]} Rg1+ {[%emt 0:00:55]} 40. Kf2 {[%emt 0:00:30]} Rh1 {[%emt 0:02:22]} 41. Kg2 {[%emt 0:03:30]} Rc1 {[%emt 0:00:11]} 42. Rd2 {[%emt 0:00:00]} Ke5 {[%emt 0:00:24]} 43. Rd7 {[%emt 0:01:00]} h5 {[%emt 0:00:20]} 44. R7d6 {[%emt 0:00:30]} Rxc2 {[%emt 0:00:57]} 45. f4+ {[%emt 0:00:30]} 1-0

[Event "Turkish Second League 2019"]
[Site "Konya"]
[Date "2019.07.25"]
[Round "6"]
[White "Ozkurt, Kutay"]
[Black "Ekici, Emre"]
[Result "1/2-1/2"]
[ECO "B36"]
[WhiteElo "1824"]
[BlackElo "1697"]
[Annotator "NA"]
[PlyCount "63"]
[EventDate "2019.07.22"]
[EventType "team-tourn"]
[EventCountry "TUR"]
[SourceTitle "playchess.com"]
[Source "ChessBase"]
[SourceQuality "1"]
[TimeControl "5400+30"]

1. e4 {[%emt 0:00:30]} c5 {[%emt 0:00:30]} 2. Nf3 {[%emt 0:00:00]} g6 {[%emt 0:00:30]} 3. c4 {[%emt 0:00:00]} Nc6 {[%emt 0:00:30]} 4. d4 {[%emt 0:00:30]} cxd4 {[%emt 0:00:30]} 5. Nxd4 {[%emt 0:00:00]} Nf6 {[%emt 0:01:30]} 6. Nc3 {[%emt 0:00:00]} d6 {[%emt 0:00:30]} 7. Be2 {[%emt 0:02:30]} Nxd4 {[%emt 0:02:30]} 8. Qxd4 {[%emt 0:00:30]} Bg7 {[%emt 0:01:30]} 9. Bg5 {[%emt 0:00:30]} Qa5 {[%emt 0:05:30]} 10. Qd2 {[%emt 0:01:30]} Be6 {[%emt 0:03:30]} 11. Rc1 {[%emt 0:04:30]} Rc8 {[%emt 0:03:30]} 12. b3 {[%emt 0:02:30]} O-O {[%emt 0:05:30]} 13. O-O {[%emt 0:00:30]} a6 {[%emt 0:05:30]} 14. a4 {[%emt 0:03:30]} Rfe8 {[%emt 0:04:30]} 15. Rfd1 {[%emt 0:00:30]} Nd7 {[%emt 0:01:30]} 16. Nd5 {[%emt 0:01:30]} Qxd2 {[%emt 0:01:30]} 17. Rxd2 {[%emt 0:01:30]} Bxd5 {[%emt 0:02:30]} 18. exd5 {[%emt 0:00:30]} Nc5 {[%emt 0:00:30]} 19. Ra2 {[%emt 0:05:30]} Nxb3 {[%emt 0:01:30]} 20. Rb1 {[%emt 0:00:00]} Nc5 {[%emt 0:03:30]} 21. Be3 {[%emt 0:00:00]} Rc7 {[%emt 0:01:30]} 22. Bxc5 {[%emt 0:00:30]} dxc5 {[%emt 0:00:30]} 23. Bf3 {[%emt 0:00:30]} Bc3 {[%emt 0:01:30]} 24. Re2 {[%emt 0:00:30]} Bb4 {[%emt 0:02:30]} 25. Rd1 {[%emt 0:02:30]} Rd7 {[%emt 0:01:30]} 26. Rd3 {[%emt 0:07:30]} Red8 {[%emt 0:06:30]} 27. Rde3 {[%emt 0:00:30]} Kf8 {[%emt 0:04:30]} 28. Bg4 {[%emt 0:00:30]} Rc7 {[%emt 0:01:30]} 29. Bf3 {[%emt 0:01:30]} Rb8 {[%emt 0:05:30]} 30. Re4 {[%emt 0:15:30]} b5 {[%emt 0:02:30]} 31. axb5 {[%emt 0:00:30]} axb5 {[%emt 0:00:30]} 32. g3 {[%emt 0:00:00]} 1/2-1/2

[Event "Turkish Second League 2019"]
[Site "Konya"]
[Date "2019.07.25"]
[Round "6"]
[White "Ucucu, Salih"]
[Black "Alaoglu, Niyazi Bekirhan"]
[Result "1-0"]
[ECO "B12"]
[WhiteElo "1819"]
[BlackElo "1769"]
[Annotator "NA"]
[PlyCount "97"]
[EventDate "2019.07.22"]
[EventType "team-tourn"]
[EventCountry "TUR"]
[SourceTitle "playchess.com"]
[Source "ChessBase"]
[SourceQuality "1"]
[TimeControl "5400+30"]

1. e4 {[%emt 0:00:30]} c6 {[%emt 0:00:30]} 2. d4 {[%emt 0:00:30]} d5 {[%emt 0:00:00]} 3. e5 {[%emt 0:00:00]} c5 {[%emt 0:01:00]} 4. dxc5 {[%emt 0:00:00]} Nc6 {[%emt 0:00:30]} 5. Nf3 {[%emt 0:03:30]} e6 {[%emt 0:01:30]} 6. Bd3 {[%emt 0:02:30]} Bxc5 {[%emt 0:04:30]} 7. O-O {[%emt 0:00:30]} Qc7 {[%emt 0:04:30]} 8. Bf4 {[%emt 0:17:30]} Nge7 {[%emt 0:13:30]} 9. Nc3 {[%emt 0:09:30]} a6 {[%emt 0:01:30]} 10. Bg3 {[%emt 0:05:30]} Nb4 {[%emt 0:10:30]} 11. Rc1 {[%emt 0:05:30]} Ng6 {[%emt 0:11:30]} 12. a3 {[%emt 0:04:30]} Nc6 {[%emt 0:00:30]} 13. Re1 {[%emt 0:09:30]} b5 {[%emt 0:02:30]} 14. h4 {[%emt 0:01:30]} Nge7 {[%emt 0:10:30]} 15. Qd2 {[%emt 0:04:30]} h6 {[%emt 0:04:30]} 16. Ne2 {[%emt 0:00:30]} Bb7 {[%emt 0:09:30]} 17. b4 {[%emt 0:00:30]} Ba7 {[%emt 0:01:30]} 18. c3 {[%emt 0:00:30]} Nc8 {[%emt 0:00:45]} 19. Nf4 {[%emt 0:00:30]} g6 {[%emt 0:02:20]} 20. Nd4 {[%emt 0:03:30]} N8e7 {[%emt 0:03:58]} 21. Qe2 {[%emt 0:06:30]} Bxd4 {[%emt 0:01:41]} 22. cxd4 {[%emt 0:00:00]} Qb6 {[%emt 0:00:15]} 23. Red1 {[%emt 0:08:17]} Kd7 {[%emt 0:06:04]} 24. Bb1 {[%emt 0:01:57]} Rac8 {[%emt 0:03:02]} 25. Qb2 {[%emt 0:01:51]} a5 {[%emt 0:02:43]} 26. Nd3 {[%emt 0:01:27]} axb4 {[%emt 0:01:11]} 27. Nc5+ {[%emt 0:00:39]} Kc7 {[%emt 0:00:43]} 28. axb4 {[%emt 0:00:37]} Ra8 {[%emt 0:00:15]} 29. Bd3 {[%emt 0:01:05]} Nf5 {[%emt 0:00:15]} 30. Bf1 {[%emt 0:02:32]} Kd8 {[%emt 0:02:45]} 31. Nxb7+ {[%emt 0:01:06]} Qxb7 {[%emt 0:00:30]} 32. Rc5 {[%emt 0:00:30]} Ra6 {[%emt 0:00:30]} 33. Bxb5 {[%emt 0:00:50]} Rb6 {[%emt 0:00:30]} 34. Bxc6 {[%emt 0:00:06]} Rxc6 {[%emt 0:00:00]} 35. b5 {[%emt 0:00:12]} Rxc5 {[%emt 0:01:08]} 36. dxc5 {[%emt 0:00:03]} Nxg3 {[%emt 0:00:18]} 37. fxg3 {[%emt 0:00:30]} Kc7 {[%emt 0:00:00]} 38. Rf1 {[%emt 0:00:48]} Kb8 {[%emt 0:00:07]} 39. c6 {[%emt 0:01:24]} Qb6+ {[%emt 0:00:09]} 40. Kh2 {[%emt 0:00:38]} Rc8 {[%emt 0:00:09]} 41. Qe2 {[%emt 0:02:10]} Rc7 {[%emt 0:00:33]} 42. Ra1 {[%emt 0:00:23]} Ra7 {[%emt 0:01:28]} 43. Rxa7 {[%emt 0:00:01]} Qxa7 {[%emt 0:00:05]} 44. Qf1 {[%emt 0:00:17]} Qc7 {[%emt 0:00:39]} 45. Qf2 {[%emt 0:00:18]} g5 {[%emt 0:00:56]} 46. h5 {[%emt 0:02:48]} g4 {[%emt 0:00:48]} 47. Qc5 {[%emt 0:00:34]} f6 {[%emt 0:00:37]} 48. b6 {[%emt 0:01:13]} Qc8 {[%emt 0:00:34]} 49. Qd6+ {[%emt 0:00:11]} 1-0

[Event "Turkish Second League 2019"]
[Site "Konya"]
[Date "2019.07.25"]
[Round "6"]
[White "Kara, Gulce Nehir"]
[Black "Aksoy, Ayca"]
[Result "1/2-1/2"]
[ECO "B04"]
[WhiteElo "1767"]
[BlackElo "1914"]
[Annotator "NA"]
[PlyCount "118"]
[EventDate "2019.07.22"]
[EventType "team-tourn"]
[EventCountry "TUR"]
[SourceTitle "playchess.com"]
[Source "ChessBase"]
[SourceQuality "1"]
[TimeControl "5400+30"]

1. e4 {[%emt 0:00:00]} Nf6 {[%emt 0:00:30]} 2. e5 {[%emt 0:02:00]} Nd5 {[%emt 0:01:30]} 3. d4 {[%emt 0:00:30]} d6 {[%emt 0:00:30]} 4. c4 {[%emt 0:00:30]} Nb6 {[%emt 0:00:00]} 5. exd6 {[%emt 0:04:30]} cxd6 {[%emt 0:00:00]} 6. Nf3 {[%emt 0:02:30]} g6 {[%emt 0:02:30]} 7. Be3 {[%emt 0:07:30]} Bg7 {[%emt 0:00:30]} 8. Nc3 {[%emt 0:01:30]} Nc6 {[%emt 0:00:30]} 9. h3 {[%emt 0:04:30]} O-O {[%emt 0:00:30]} 10. Qd2 {[%emt 0:02:30]} d5 {[%emt 0:12:30]} 11. c5 {[%emt 0:05:30]} Nc4 {[%emt 0:00:30]} 12. Bxc4 {[%emt 0:01:30]} dxc4 {[%emt 0:00:30]} 13. O-O {[%emt 0:05:30]} Bf5 {[%emt 0:10:30]} 14. b3 {[%emt 0:08:30]} Bd3 {[%emt 0:21:30]} 15. Rfd1 {[%emt 0:04:30]} e6 {[%emt 0:06:30]} 16. bxc4 {[%emt 0:05:30]} Bxc4 {[%emt 0:00:30]} 17. Bh6 {[%emt 0:00:30]} Qa5 {[%emt 0:03:30]} 18. Bxg7 {[%emt 0:02:30]} Kxg7 {[%emt 0:00:30]} 19. Qb2 {[%emt 0:01:30]} Qb4 {[%emt 0:06:30]} 20. Rab1 {[%emt 0:03:30]} Qxb2 {[%emt 0:03:30]} 21. Rxb2 {[%emt 0:00:30]} Rab8 {[%emt 0:08:01]} 22. Rdb1 {[%emt 0:12:30]} Bd3 {[%emt 0:00:19]} 23. Rd1 {[%emt 0:00:00]} Bc4 {[%emt 0:01:42]} 24. Rdb1 {[%emt 0:02:00]} Bd3 {[%emt 0:04:46]} 25. Rd1 {[%emt 0:12:31]} Ba6 {[%emt 0:01:00]} 26. Ne5 {[%emt 0:02:56]} Rfd8 {[%emt 0:02:51]} 27. Nxc6 {[%emt 0:01:35]} bxc6 {[%emt 0:00:01]} 28. Rxb8 {[%emt 0:02:25]} Rxb8 {[%emt 0:00:02]} 29. Rb1 {[%emt 0:00:00]} Rxb1+ {[%emt 0:04:08]} 30. Nxb1 {[%emt 0:00:00]} Kf6 {[%emt 0:00:00]} 31. Nc3 {[%emt 0:01:18]} e5 {[%emt 0:02:31]} 32. d5 {[%emt 0:01:38]} cxd5 {[%emt 0:00:30]} 33. Nxd5+ {[%emt 0:00:00]} Kg7 {[%emt 0:00:00]} 34. Ne7 {[%emt 0:02:36]} Kf6 {[%emt 0:03:35]} 35. Nc6 {[%emt 0:00:11]} Ke6 {[%emt 0:02:03]} 36. Nxa7 {[%emt 0:00:48]} Kd7 {[%emt 0:00:23]} 37. a4 {[%emt 0:01:00]} Kc7 {[%emt 0:00:47]} 38. Nb5+ {[%emt 0:01:09]} Kc6 {[%emt 0:00:05]} 39. Nd6 {[%emt 0:00:08]} f5 {[%emt 0:01:22]} 40. Nf7 {[%emt 0:00:39]} e4 {[%emt 0:00:26]} 41. Ng5 {[%emt 0:00:34]} h5 {[%emt 0:00:44]} 42. Ne6 {[%emt 0:01:00]} Bc4 {[%emt 0:00:08]} 43. Nf4 {[%emt 0:00:21]} Bf7 {[%emt 0:00:36]} 44. h4 {[%emt 0:00:37]} Kxc5 {[%emt 0:00:18]} 45. Kf1 {[%emt 0:00:28]} Kb4 {[%emt 0:00:42]} 46. Ke2 {[%emt 0:00:16]} Kxa4 {[%emt 0:00:31]} 47. Ke3 {[%emt 0:00:28]} Kb3 {[%emt 0:01:01]} 48. g3 {[%emt 0:00:19]} Kc4 {[%emt 0:00:38]} 49. Ng2 {[%emt 0:00:51]} Kd5 {[%emt 0:01:42]} 50. Nf4+ {[%emt 0:00:30]} Ke5 {[%emt 0:00:06]} 51. Nh3 {[%emt 0:00:37]} Be8 {[%emt 0:00:50]} 52. Ng5 {[%emt 0:00:29]} Ba4 {[%emt 0:00:33]} 53. Nh3 {[%emt 0:00:33]} Bd1 {[%emt 0:00:33]} 54. Nf4 {[%emt 0:00:21]} Kf6 {[%emt 0:00:13]} 55. Nd5+ {[%emt 0:00:13]} Ke6 {[%emt 0:00:41]} 56. Nc3 {[%emt 0:00:54]} Bb3 {[%emt 0:00:30]} 57. Kf4 {[%emt 0:00:30]} Kf6 {[%emt 0:00:30]} 58. Ne2 {[%emt 0:00:30]} Bc4 {[%emt 0:00:30]} 59. Nd4 {[%emt 0:00:30]} Bd5 {[%emt 0:00:09]} 1/2-1/2

[Event "Turkish Second League 2019"]
[Site "Konya"]
[Date "2019.07.25"]
[Round "6"]
[White "Acar, Cengiz Can"]
[Black "Tofan, Ibrahim"]
[Result "0-1"]
[ECO "D02"]
[WhiteElo "1756"]
[BlackElo "2043"]
[Annotator "NA"]
[PlyCount "136"]
[EventDate "2019.07.22"]
[EventType "team-tourn"]
[EventCountry "TUR"]
[SourceTitle "playchess.com"]
[Source "ChessBase"]
[SourceQuality "1"]
[TimeControl "5400+30"]

1. d4 {[%emt 0:01:30]} d5 {[%emt 0:04:30]} 2. Bf4 {[%emt 0:00:30]} c6 {[%emt 0:00:30]} 3. Nf3 {[%emt 0:01:30]} Bf5 {[%emt 0:00:30]} 4. e3 {[%emt 0:01:30]} Qb6 {[%emt 0:00:30]} 5. Qc1 {[%emt 0:11:30]} Nf6 {[%emt 0:00:30]} 6. h3 {[%emt 0:01:30]} h6 {[%emt 0:00:30]} 7. Be2 {[%emt 0:02:30]} Nbd7 {[%emt 0:00:30]} 8. O-O {[%emt 0:00:30]} e6 {[%emt 0:04:30]} 9. c4 {[%emt 0:01:30]} g5 {[%emt 0:01:30]} 10. Bh2 {[%emt 0:12:30]} g4 {[%emt 0:00:30]} 11. hxg4 {[%emt 0:00:30]} Nxg4 {[%emt 0:00:30]} 12. Bg3 {[%emt 0:06:30]} Be7 {[%emt 0:01:30]} 13. Nc3 {[%emt 0:08:30]} Qd8 {[%emt 0:00:30]} 14. cxd5 {[%emt 0:04:30]} exd5 {[%emt 0:00:00]} 15. Ne5 {[%emt 0:02:30]} Ngxe5 {[%emt 0:00:00]} 16. dxe5 {[%emt 0:01:30]} Rg8 {[%emt 0:01:30]} 17. e4 {[%emt 0:01:30]} dxe4 {[%emt 0:01:30]} 18. Qf4 {[%emt 0:00:30]} Be6 {[%emt 0:08:30]} 19. Nxe4 {[%emt 0:00:30]} Qb6 {[%emt 0:00:30]} 20. Bh4 {[%emt 0:03:30]} Bd5 {[%emt 0:05:30]} 21. Bf3 {[%emt 0:05:30]} Bxe4 {[%emt 0:01:30]} 22. Qxe4 {[%emt 0:01:30]} Qb4 {[%emt 0:02:30]} 23. Qxb4 {[%emt 0:09:38]} Bxb4 {[%emt 0:00:30]} 24. Bg3 {[%emt 0:00:22]} O-O-O {[%emt 0:00:30]} 25. a3 {[%emt 0:00:52]} Bc5 {[%emt 0:00:30]} 26. Bf4 {[%emt 0:02:13]} Rde8 {[%emt 0:00:30]} 27. Rfd1 {[%emt 0:02:08]} Nxe5 {[%emt 0:00:30]} 28. Bxe5 {[%emt 0:00:02]} Rxe5 {[%emt 0:00:30]} 29. b4 {[%emt 0:00:15]} Bb6 {[%emt 0:00:30]} 30. Rd6 {[%emt 0:00:56]} Rd8 {[%emt 0:06:30]} 31. Rxh6 {[%emt 0:03:20]} Rd2 {[%emt 0:00:30]} 32. Rf1 {[%emt 0:00:00]} Ra2 {[%emt 0:01:30]} 33. Rf6 {[%emt 0:01:30]} Re7 {[%emt 0:03:30]} 34. Bh5 {[%emt 0:01:52]} Rxa3 {[%emt 0:00:30]} 35. Rxf7 {[%emt 0:00:00]} Rxf7 {[%emt 0:02:30]} 36. Bxf7 {[%emt 0:00:00]} Rd3 {[%emt 0:00:30]} 37. Kh2 {[%emt 0:05:23]} Kd8 {[%emt 0:01:30]} 38. f4 {[%emt 0:01:08]} Rd4 {[%emt 0:00:30]} 39. g4 {[%emt 0:02:05]} Bc7 {[%emt 0:06:30]} 40. Kg3 {[%emt 0:00:06]} Ke7 {[%emt 0:00:30]} 41. Bg8 {[%emt 0:00:08]} Kf6 {[%emt 0:01:30]} 42. g5+ {[%emt 0:00:59]} Kg7 {[%emt 0:00:30]} 43. Be6 {[%emt 0:00:13]} Rxb4 {[%emt 0:00:30]} 44. Kg4 {[%emt 0:01:10]} a5 {[%emt 0:00:30]} 45. Kh5 {[%emt 0:01:10]} Bxf4 {[%emt 0:02:30]} 46. Bc8 {[%emt 0:02:03]} a4 {[%emt 0:03:30]} 47. Rd1 {[%emt 0:00:52]} a3 {[%emt 0:03:30]} 48. Rd7+ {[%emt 0:01:33]} Kf8 {[%emt 0:00:00]} 49. g6 {[%emt 0:00:07]} Rb5+ {[%emt 0:03:00]} 50. Kg4 {[%emt 0:00:05]} Bh6 {[%emt 0:01:30]} 51. Rf7+ {[%emt 0:02:11]} Ke8 {[%emt 0:02:30]} 52. Bxb7 {[%emt 0:00:03]} Rg5+ {[%emt 0:00:30]} 53. Kh3 {[%emt 0:01:57]} Rxg6 {[%emt 0:00:00]} 54. Rf2 {[%emt 0:00:05]} Rd6 {[%emt 0:04:00]} 55. Rc2 {[%emt 0:00:32]} Kd7 {[%emt 0:00:30]} 56. Kg3 {[%emt 0:00:25]} Bg7 {[%emt 0:01:30]} 57. Ba6 {[%emt 0:00:17]} Rd4 {[%emt 0:01:30]} 58. Ra2 {[%emt 0:00:47]} Ra4 {[%emt 0:00:30]} 59. Bd3 {[%emt 0:00:19]} Bb2 {[%emt 0:00:30]} 60. Kf3 {[%emt 0:00:28]} Kd6 {[%emt 0:00:00]} 61. Ke3 {[%emt 0:00:07]} Ke5 {[%emt 0:01:00]} 62. Bc2 {[%emt 0:00:33]} Rd4 {[%emt 0:00:30]} 63. Ke2 {[%emt 0:00:15]} c5 {[%emt 0:00:30]} 64. Ke3 {[%emt 0:00:29]} c4 {[%emt 0:00:30]} 65. Ke2 {[%emt 0:00:20]} Kf4 {[%emt 0:00:30]} 66. Ba4 {[%emt 0:01:29]} c3 {[%emt 0:00:30]} 67. Bb3 {[%emt 0:00:03]} Rd2+ {[%emt 0:00:00]} 68. Ke1 {[%emt 0:00:33]} Ke3 {[%emt 0:01:00]} 0-1

[Event "Turkish Second League 2019"]
[Site "Konya"]
[Date "2019.07.25"]
[Round "6"]
[White "Ozsayin, Elif"]
[Black "Guclu, Yagmur"]
[Result "1-0"]
[ECO "D02"]
[WhiteElo "1642"]
[BlackElo "1516"]
[Annotator "NA"]
[PlyCount "87"]
[EventDate "2019.07.22"]
[EventType "team-tourn"]
[EventCountry "TUR"]
[SourceTitle "playchess.com"]
[Source "ChessBase"]
[SourceQuality "1"]
[TimeControl "5400+30"]

1. d4 {[%emt 0:00:30]} d5 {[%emt 0:00:30]} 2. Nf3 {[%emt 0:00:30]} Nf6 {[%emt 0:00:30]} 3. g3 {[%emt 0:02:30]} e6 {[%emt 0:02:30]} 4. Bg2 {[%emt 0:04:30]} c5 {[%emt 0:03:30]} 5. e3 {[%emt 0:01:30]} Nc6 {[%emt 0:02:30]} 6. O-O {[%emt 0:01:30]} Bd6 {[%emt 0:02:30]} 7. b3 {[%emt 0:01:30]} O-O {[%emt 0:07:30]} 8. Bb2 {[%emt 0:01:30]} Bd7 {[%emt 0:03:30]} 9. Nbd2 {[%emt 0:02:30]} Rc8 {[%emt 0:03:30]} 10. Ne5 {[%emt 0:09:30]} a6 {[%emt 0:07:30]} 11. Nxd7 {[%emt 0:05:30]} Nxd7 {[%emt 0:01:30]} 12. c4 {[%emt 0:01:30]} cxd4 {[%emt 0:12:30]} 13. exd4 {[%emt 0:03:30]} Nf6 {[%emt 0:08:30]} 14. Qe2 {[%emt 0:05:30]} Re8 {[%emt 0:03:30]} 15. f4 {[%emt 0:02:30]} Bc7 {[%emt 0:08:30]} 16. Rad1 {[%emt 0:04:30]} Bb6 {[%emt 0:04:30]} 17. c5 {[%emt 0:01:30]} Bc7 {[%emt 0:00:00]} 18. a3 {[%emt 0:01:30]} a5 {[%emt 0:05:00]} 19. Bc3 {[%emt 0:07:30]} Qd7 {[%emt 0:08:47]} 20. b4 {[%emt 0:03:30]} axb4 {[%emt 0:01:02]} 21. axb4 {[%emt 0:00:30]} Na7 {[%emt 0:02:16]} 22. Nf3 {[%emt 0:03:30]} Qb5 {[%emt 0:03:30]} 23. Qe3 {[%emt 0:06:30]} Ne4 {[%emt 0:04:20]} 24. Be1 {[%emt 0:01:30]} Ra8 {[%emt 0:02:34]} 25. Ne5 {[%emt 0:02:30]} f5 {[%emt 0:01:20]} 26. g4 {[%emt 0:06:01]} Rf8 {[%emt 0:00:37]} 27. gxf5 {[%emt 0:00:55]} exf5 {[%emt 0:00:06]} 28. Qb3 {[%emt 0:01:32]} Rad8 {[%emt 0:00:54]} 29. Rf3 {[%emt 0:00:36]} Qe8 {[%emt 0:00:31]} 30. Bf1 {[%emt 0:03:03]} Nf6 {[%emt 0:00:26]} 31. b5 {[%emt 0:01:48]} b6 {[%emt 0:00:32]} 32. Ra1 {[%emt 0:00:59]} Nc8 {[%emt 0:00:28]} 33. Bb4 {[%emt 0:00:42]} Ne7 {[%emt 0:00:28]} 34. Ra7 {[%emt 0:02:08]} Rc8 {[%emt 0:00:32]} 35. Qa3 {[%emt 0:02:45]} Ne4 {[%emt 0:00:32]} 36. cxb6 {[%emt 0:01:17]} Bxe5 {[%emt 0:00:07]} 37. dxe5 {[%emt 0:01:35]} Rf7 {[%emt 0:00:29]} 38. Rxe7 {[%emt 0:01:16]} Rxe7 {[%emt 0:00:09]} 39. Bxe7 {[%emt 0:00:00]} Nd2 {[%emt 0:00:17]} 40. Bd6 {[%emt 0:04:16]} Nxf3+ {[%emt 0:01:18]} 41. Qxf3 {[%emt 0:00:30]} Qf7 {[%emt 0:00:30]} 42. Bg2 {[%emt 0:00:25]} Rc1+ {[%emt 0:00:27]} 43. Kf2 {[%emt 0:00:09]} Rc2+ {[%emt 0:00:23]} 44. Ke1 {[%emt 0:00:13]} 1-0

[Event "Turkish Second League 2019"]
[Site "Konya"]
[Date "2019.07.25"]
[Round "6"]
[White "Ozaltun, Ecem"]
[Black "Ayazmali, Gizem"]
[Result "1/2-1/2"]
[ECO "A84"]
[WhiteElo "1551"]
[BlackElo "1767"]
[Annotator "NA"]
[PlyCount "80"]
[EventDate "2019.07.22"]
[EventType "team-tourn"]
[EventCountry "TUR"]
[SourceTitle "playchess.com"]
[Source "ChessBase"]
[SourceQuality "1"]
[TimeControl "5400+30"]

1. d4 {[%emt 0:00:30]} f5 {[%emt 0:00:30]} 2. c4 {[%emt 0:01:30]} e6 {[%emt 0:00:00]} 3. Nc3 {[%emt 0:00:30]} Nf6 {[%emt 0:00:00]} 4. g3 {[%emt 0:04:30]} Bb4 {[%emt 0:00:30]} 5. Bd2 {[%emt 0:01:30]} O-O {[%emt 0:01:30]} 6. Bg2 {[%emt 0:03:30]} d6 {[%emt 0:01:30]} 7. a3 {[%emt 0:03:30]} Bxc3 {[%emt 0:00:30]} 8. Bxc3 {[%emt 0:00:00]} Nbd7 {[%emt 0:04:30]} 9. e3 {[%emt 0:05:00]} Ne4 {[%emt 0:08:30]} 10. Ne2 {[%emt 0:02:30]} Ndf6 {[%emt 0:02:30]} 11. f3 {[%emt 0:06:30]} Nxc3 {[%emt 0:00:30]} 12. Nxc3 {[%emt 0:00:00]} Qe8 {[%emt 0:08:30]} 13. O-O {[%emt 0:05:00]} e5 {[%emt 0:11:30]} 14. dxe5 {[%emt 0:11:30]} dxe5 {[%emt 0:01:30]} 15. Nd5 {[%emt 0:08:30]} Qf7 {[%emt 0:05:30]} 16. Nxf6+ {[%emt 0:07:30]} Qxf6 {[%emt 0:00:00]} 17. Qd5+ {[%emt 0:01:30]} Kh8 {[%emt 0:00:00]} 18. Rfd1 {[%emt 0:01:30]} h5 {[%emt 0:17:30]} 19. b4 {[%emt 0:08:30]} h4 {[%emt 0:14:30]} 20. Kf2 {[%emt 0:02:30]} c6 {[%emt 0:13:53]} 21. Qd2 {[%emt 0:05:46]} Be6 {[%emt 0:01:09]} 22. Qc3 {[%emt 0:00:30]} Rae8 {[%emt 0:03:21]} 23. Rd2 {[%emt 0:02:13]} f4 {[%emt 0:01:39]} 24. exf4 {[%emt 0:02:38]} exf4 {[%emt 0:00:21]} 25. Qxf6 {[%emt 0:01:45]} Rxf6 {[%emt 0:00:01]} 26. Rd4 {[%emt 0:00:14]} h3 {[%emt 0:01:40]} 27. Bf1 {[%emt 0:01:59]} fxg3+ {[%emt 0:00:29]} 28. Kxg3 {[%emt 0:02:33]} Ref8 {[%emt 0:00:27]} 29. Rh4+ {[%emt 0:06:56]} Kg8 {[%emt 0:00:01]} 30. Bxh3 {[%emt 0:01:13]} Rxf3+ {[%emt 0:00:53]} 31. Kg2 {[%emt 0:00:12]} Bxh3+ {[%emt 0:00:05]} 32. Rxh3 {[%emt 0:00:18]} Rxh3 {[%emt 0:00:43]} 33. Kxh3 {[%emt 0:00:05]} Rf3+ {[%emt 0:00:00]} 34. Kg2 {[%emt 0:00:48]} Rc3 {[%emt 0:00:00]} 35. c5 {[%emt 0:00:00]} Kh7 {[%emt 0:00:35]} 36. Ra2 {[%emt 0:01:03]} Kg6 {[%emt 0:01:03]} 37. Kf1 {[%emt 0:00:58]} Kf5 {[%emt 0:01:37]} 38. Rf2+ {[%emt 0:00:32]} Ke6 {[%emt 0:00:29]} 39. Re2+ {[%emt 0:00:15]} Kf6 {[%emt 0:00:12]} 40. Rf2+ {[%emt 0:00:30]} Ke5 {[%emt 0:00:00]} 1/2-1/2

[Event "Turkish Second League 2019"]
[Site "Konya"]
[Date "2019.07.25"]
[Round "6"]
[White "Ilkbahar, Nimet Seray"]
[Black "Ozturk, Ecem"]
[Result "1/2-1/2"]
[ECO "C45"]
[WhiteElo "1531"]
[BlackElo "1268"]
[Annotator "NA"]
[PlyCount "49"]
[EventDate "2019.07.22"]
[EventType "team-tourn"]
[EventCountry "TUR"]
[SourceTitle "playchess.com"]
[Source "ChessBase"]
[SourceQuality "1"]
[TimeControl "5400+30"]

1. e4 {[%emt 0:00:30]} e5 {[%emt 0:00:30]} 2. Nf3 {[%emt 0:00:00]} Nc6 {[%emt 0:00:30]} 3. Nc3 {[%emt 0:00:00]} Nf6 {[%emt 0:00:00]} 4. Be2 {[%emt 0:00:00]} Be7 {[%emt 0:02:00]} 5. d4 {[%emt 0:00:00]} exd4 {[%emt 0:02:30]} 6. Nxd4 {[%emt 0:00:30]} Nxd4 {[%emt 0:01:30]} 7. Qxd4 {[%emt 0:01:30]} d6 {[%emt 0:00:30]} 8. O-O {[%emt 0:01:30]} O-O {[%emt 0:02:30]} 9. Bf4 {[%emt 0:04:30]} Bd7 {[%emt 0:10:30]} 10. Rad1 {[%emt 0:01:30]} Bc6 {[%emt 0:02:30]} 11. Qe3 {[%emt 0:18:30]} Nd7 {[%emt 0:10:30]} 12. Qg3 {[%emt 0:18:30]} Bf6 {[%emt 0:08:30]} 13. Bd2 {[%emt 0:21:30]} Qe7 {[%emt 0:08:30]} 14. Bd3 {[%emt 0:10:20]} Rfe8 {[%emt 0:09:30]} 15. Rfe1 {[%emt 0:01:42]} Bh4 {[%emt 0:14:30]} 16. Qh3 {[%emt 0:01:29]} Ne5 {[%emt 0:01:30]} 17. Nd5 {[%emt 0:06:44]} Qd8 {[%emt 0:01:30]} 18. Be2 {[%emt 0:07:24]} Bd7 {[%emt 0:08:45]} 19. Qb3 {[%emt 0:01:02]} Bc6 {[%emt 0:04:36]} 20. Qh3 {[%emt 0:00:10]} Bd7 {[%emt 0:01:10]} 21. Qb3 {[%emt 0:00:11]} Bc6 {[%emt 0:00:35]} 22. Qh3 {[%emt 0:01:19]} Bd7 {[%emt 0:01:01]} 23. Qb3 {[%emt 0:00:36]} Bc6 {[%emt 0:00:29]} 24. Qh3 {[%emt 0:01:15]} Bd7 {[%emt 0:00:31]} 25. Ra1 {[%emt 0:00:31]} 1/2-1/2